bitfinex-derivatives/quotes_ETHF0:USTF0_20251021
["timestamp","ask_amount","ask_price","bid_price","bid_amount"]
[1761022207890,0.3261,3855.8,3855.1,3.38640322]
[1761022208086,0.3261,3855.5,3855.0,0.3371]
[1761022208290,0.3261,3855.5,3855.0,10.0661]
[1761022208594,0.3261,3855.4,3855.0,0.3371]
[1761022208794,0.3261,3855.3,3854.8,9.728]
[1761022208989,0.3261,3855.3,3854.9,0.3371]
[1761022209290,0.3261,3855.8,3855.4,0.46677]
[1761022209493,0.00325855,3855.9,3855.5,0.46676]
[1761022209788,0.00325855,3855.9,3855.8,0.3371]
[1761022210691,0.00325855,3855.9,3855.1,0.3371]
[1761022210892,0.3261,3855.8,3855.2,2.649]
[1761022211097,0.3261,3855.8,3855.3,0.80388]
[1761022211391,0.3261,3855.8,3855.4,0.3371]
[1761022211599,0.3261,3855.6,3855.2,2.9861]
[1761022211897,0.3261,3855.6,3855.3,0.3371]
[1761022212199,0.3261,3855.6,3854.5,0.12456495]
[1761022212200,0.3261,3855.8,3855.1,9.716]
[1761022212386,0.3261,3855.6,3855.1,9.716]
[1761022212589,0.3261,3855.6,3855.2,0.3371]
[1761022212892,0.3261,3855.3,3854.7,10.51996]
[1761022213091,0.3261,3855.3,3854.7,10.0531]
[1761022213291,0.3261,3855.3,3854.7,9.716]
[1761022213493,0.3261,3855.6,3855.3,0.80389]
[1761022213689,0.00325855,3855.9,3855.4,0.3371]
[1761022213690,0.32935855,3855.9,3855.4,0.3371]
[1761022213892,0.32935855,3855.9,3855.5,0.3371]
[1761022214594,0.32935855,3855.9,3855.6,0.3371]
[1761022215394,0.00325855,3855.9,3855.8,0.3371]
[1761022220092,0.3332,3855.6,3855.3,9.691]
[1761022220291,0.3332,3855.6,3855.3,10.15779]
[1761022220491,0.3332,3855.6,3855.3,10.48169]
[1761022220699,0.3332,3855.6,3855.4,0.3239]
[1761022220896,0.00325855,3855.9,3855.4,0.3239]
[1761022221201,0.3332,3855.8,3855.5,0.3239]
[1761022221589,0.3332,3855.8,3855.3,9.691]
[1761022221789,0.00325855,3855.9,3855.2,9.682]
[1761022221790,0.3332,3855.4,3855.2,9.682]
[1761022222092,0.3332,3855.6,3855.3,0.3239]
[1761022222993,0.3332,3855.6,3854.6,0.3239]
[1761022222994,0.3332,3855.5,3854.6,0.3239]
[1761022223200,0.3332,3855.1,3854.6,10.14288]
[1761022223496,0.00325855,3855.9,3855.7,0.46674]
[1761022223693,0.3332,3856.5,3855.9,0.3239]
[1761022223888,0.79985,3856.5,3855.9,0.3239]
[1761022224098,0.3332,3856.2,3855.9,0.3239]
[1761022224402,0.3332,3856.2,3856.0,0.3239]
[1761022224593,0.00236827,3856.2,3856.0,0.32604998]
[1761022225394,0.00236827,3856.2,3856.0,0.79274998]
[1761022225595,0.00236827,3856.2,3856.1,0.3239]
[1761022227704,0.3332,3856.9,3856.3,0.3236]
[1761022227909,0.3156,3856.7,3856.0,0.32574998]
[1761022228204,0.3156,3856.6,3856.3,0.3236]
[1761022228797,0.31746103,3856.6,3856.3,0.3236]
[1761022229809,0.31746103,3856.6,3856.4,0.3236]
[1761022229998,0.00186103,3856.6,3856.5,0.3236]
[1761022231708,0.3156,3857.2,3856.9,0.3236]
[1761022232006,0.3156,3857.2,3857.0,9.9726]
[1761022232214,0.3156,3857.2,3857.0,0.3236]
[1761022232707,0.3156,3857.1,3856.9,9.646]
[1761022233112,0.3156,3857.1,3856.9,9.9696]
[1761022233806,0.3156,3857.1,3857.0,0.3236]
[1761022234216,0.00311856,3857.2,3857.0,0.3236]
[1761022234507,0.00311856,3857.2,3857.0,0.46131633]
[1761022234906,0.00311856,3857.2,3857.1,0.3236]
[1761022237915,0.31871856,3857.2,3857.0,0.13714332]
[1761022238112,2.07142763,3858.4,3856.8,0.3236]
[1761022238113,1.36317955,3858.8,3858.4,0.3236]
[1761022238411,0.6191069,3858.7,3858.5,9.644]
[1761022238602,0.46634,3859.1,3858.6,0.3236]
[1761022238806,0.61898179,3859.0,3858.6,0.3236]
[1761022239001,0.0028515,3859.0,3858.7,0.3236]
[1761022239408,0.0028515,3859.0,3858.9,0.3236]
[1761022239607,0.0028515,3859.0,3858.9,0.00260465]
[1761022240208,0.3184515,3859.0,3858.9,0.00260465]
[1761022240717,5.3184515,3859.0,3858.9,0.00260465]
[1761022240903,0.46649,3857.9,3857.5,0.3236]
[1761022241209,0.3156,3857.8,3857.5,0.3236]
[1761022241410,0.46645,3858.2,3857.7,0.3236]
[1761022241608,3.93974192,3859.0,3857.6,3.72671507]
[1761022241609,0.46639,3858.7,3857.6,3.72671507]
[1761022241816,0.3156,3858.8,3858.1,0.3236]
[1761022242115,0.78204,3858.3,3858.1,0.32578762]
[1761022242415,0.3156,3858.3,3858.1,0.32578762]
[1761022242803,0.46643,3858.4,3858.1,0.32578762]
[1761022243120,0.78204,3858.3,3858.1,0.32578762]
[1761022243913,0.3156,3858.3,3858.1,0.32578762]
[1761022244805,0.78202,3858.5,3858.1,0.32578762]
[1761022245202,0.3156,3858.4,3858.1,0.32578762]
[1761022246415,0.3156,3858.4,3858.1,0.46864762]
[1761022246616,0.46639,3858.7,3858.3,0.3236]
[1761022246805,0.782,3858.6,3858.3,0.3236]
[1761022247207,0.3156,3858.4,3858.3,0.3236]
[1761022247409,0.3156,3858.3,3858.1,0.32578762]
[1761022247810,0.3156,3858.3,3858.1,0.79224762]
[1761022248112,0.3156,3858.3,3858.2,0.3236]
[1761022248416,0.3156,3858.9,3858.2,0.79004]
[1761022248612,0.3156,3858.7,3858.4,0.3236]
[1761022249015,0.3156,3858.6,3858.4,0.3236]
[1761022249412,0.3184515,3859.0,3858.5,0.3236]
[1761022249608,0.3184515,3859.0,3858.1,0.00218762]
[1761022249609,0.3156,3858.7,3858.1,0.00218762]
[1761022249810,0.3156,3858.3,3858.1,0.32578762]
[1761022250313,0.46642,3858.4,3858.1,0.32578762]
[1761022250516,0.3156,3858.3,3858.1,0.32578762]
[1761022250914,0.3156,3858.2,3858.1,0.32578762]
[1761022251110,0.1335,3858.0,3857.2,0.3236]
[1761022251421,0.3156,3857.4,3857.2,0.3236]
[1761022251721,0.78215,3857.4,3857.2,0.3236]
[1761022252117,0.78215,3857.4,3857.2,0.32668564]
[1761022252319,0.3156,3857.5,3857.2,0.32668564]
[1761022252515,0.78209,3857.9,3857.3,0.3236]
[1761022252824,0.3156,3857.7,3857.4,0.3236]
[1761022253320,0.46652,3857.6,3857.4,0.3236]
[1761022253523,0.3156,3857.5,3857.4,0.3236]
[1761022257923,0.4665,3857.8,3857.4,0.3236]
[1761022258115,0.80921,3857.7,3857.4,0.3236]
[1761022258515,0.46648,3857.9,3857.6,0.3414]
[1761022258722,0.80918,3857.9,3857.7,0.3414]
[1761022258923,0.3427,3857.9,3857.7,0.3414]
[1761022259115,0.46649,3857.9,3857.7,0.3414]
[1761022259316,0.80919,3857.8,3857.7,0.3414]
[1761022260226,0.80919,3857.8,3857.5,0.1285]
[1761022260227,0.3427,3857.7,3857.5,0.3414]
[1761022260425,0.2309,3857.6,3857.5,0.7777]
[1761022260923,0.2309,3857.6,3857.2,0.00308564]
[1761022260924,0.4439,3857.6,3857.2,0.00308564]
[1761022261122,0.80926,3857.3,3857.2,0.00308564]
[1761022261825,5.80926,3857.3,3857.2,0.00308564]
[1761022263422,0.3427,3857.3,3857.2,0.34448564]
[1761022263614,0.46653,3857.5,3857.2,0.81104564]
[1761022263814,0.3427,3857.3,3857.2,0.34448564]
[1761022264226,0.3427,3857.3,3857.2,0.00308564]
[1761022265129,5.3427,3857.3,3857.2,0.00308564]
[1761022266434,0.3427,3857.3,3857.2,0.00308564]
[1761022269530,0.3427,3857.3,3857.2,0.34448564]
[1761022269732,0.80926,3857.3,3857.2,0.34448564]
[1761022270032,0.3427,3856.5,3856.2,0.3414]
[1761022270229,0.3427,3856.5,3856.2,0.80809]
[1761022270529,0.80936,3856.5,3856.3,0.3414]
[1761022270729,0.80936,3856.4,3856.3,0.3414]
[1761022270937,0.80936,3856.4,3856.3,0.34365883]
[1761022271135,0.3427,3856.4,3856.3,0.34365883]
[1761022271636,0.80936,3856.4,3856.3,0.34365883]
[1761022272243,0.3427,3856.4,3856.3,0.34365883]
[1761022272437,0.46664,3856.7,3856.3,0.34365883]
[1761022272637,0.46662,3856.8,3856.3,0.34365883]
[1761022272838,0.2309,3856.8,3856.7,0.4363]
[1761022273134,0.5736,3857.0,3856.7,0.4363]
[1761022273337,0.2309,3856.8,3856.7,0.4363]
[1761022273537,1.25322,3856.8,3856.7,0.4363]
[1761022273729,0.80921,3857.7,3857.1,0.46658]
[1761022273926,9.775,3858.0,3857.1,0.46658]
[1761022273927,0.3427,3857.4,3857.1,0.3414]
[1761022274134,0.2309,3857.2,3857.1,0.7777]
[1761022274530,0.7866,3857.2,3857.1,0.7777]
[1761022274830,0.3427,3857.6,3857.1,0.4363]
[1761022275027,0.5736,3857.6,3857.2,0.3414]
[1761022275230,0.136,3858.0,3857.2,0.3414]
[1761022275231,0.5557,3857.5,3857.4,0.2126]
[1761022275427,0.7866,3857.5,3857.4,0.554]
[1761022275629,0.3427,3858.4,3857.6,0.3414]
[1761022275827,0.4439,3857.7,3857.6,0.3414]
[1761022276032,0.7866,3857.7,3857.6,0.554]
[1761022276232,0.3256,3857.6,3857.3,0.2306]
[1761022276532,0.3256,3857.9,3857.6,0.3167]
[1761022276731,0.2222,3857.7,3857.6,0.7725]
[1761022277136,0.7583,3857.7,3857.6,0.2306]
[1761022277334,0.7583,3857.1,3857.0,0.3167]
[1761022277529,0.7583,3857.1,3857.0,0.5473]
[1761022277730,0.4327,3857.1,3857.0,0.7725]
[1761022278129,0.2222,3857.0,3856.9,0.5419]
[1761022278343,0.2222,3857.0,3856.9,0.7725]
[1761022279641,0.5478,3857.3,3857.2,0.5473]
[1761022280442,0.5478,3857.3,3857.2,0.7725]
[1761022280643,0.2222,3857.3,3857.2,0.7725]
[1761022281141,0.7583,3857.3,3857.2,0.5473]
[1761022281342,0.5478,3857.2,3857.1,0.2306]
[1761022281545,0.7583,3857.2,3857.1,0.7725]
[1761022283040,0.2105,3857.0,3856.9,0.5473]
[1761022283345,0.7583,3857.0,3856.9,0.5473]
[1761022283743,0.7583,3857.0,3856.9,0.7725]
[1761022283941,1.16627,3857.8,3857.0,0.4524]
[1761022283942,0.46657,3857.2,3857.0,0.4524]
[1761022284137,0.68877,3857.2,3857.1,0.7725]
[1761022284444,0.2222,3857.2,3857.1,0.7725]
[1761022284845,1.01435,3857.4,3857.2,0.3167]
[1761022285036,1.01435,3857.4,3857.3,0.2306]
[1761022285241,1.22485,3857.4,3857.3,0.5473]
[1761022285443,0.4327,3857.4,3857.3,0.7725]
[1761022286045,0.5478,3857.7,3857.6,0.5473]
[1761022286337,0.5478,3857.7,3857.0,0.1357]
[1761022286338,0.4327,3857.3,3857.2,0.5473]
[1761022286537,0.4327,3857.3,3857.2,0.7725]
[1761022286740,0.2222,3857.3,3857.2,1.23907]
[1761022286940,0.68872,3857.6,3857.3,0.3167]
[1761022287255,0.7583,3857.6,3857.5,0.5473]
[1761022287437,0.2222,3857.0,3856.9,0.7725]
[1761022288937,0.7806,3857.0,3856.9,0.7725]
[1761022290149,0.4508,3857.0,3856.9,0.7725]
[1761022291038,0.5603,3857.7,3857.6,0.2192]
[1761022291240,0.2305,3858.4,3858.3,0.7643]
[1761022291441,0.2305,3858.6,3858.5,0.9028]
[1761022292144,0.5603,3858.9,3858.8,0.5397]
[1761022292338,0.2305,3858.9,3858.8,0.7643]
[1761022292847,0.0028515,3859.0,3858.8,0.3205]
[1761022294350,0.3326515,3859.0,3858.8,0.3205]
[1761022294850,0.3298,3858.8,3858.6,0.3205]
[1761022295047,0.3298,3858.7,3858.1,9.633]
[1761022295249,0.3298,3857.8,3857.5,0.3205]
[1761022295440,0.79629,3857.8,3857.5,0.3205]
[1761022295643,0.79629,3857.8,3856.7,1.85127309]
[1761022295644,0.1305,3858.0,3857.1,1.71298938]
[1761022295848,0.3298,3857.9,3857.1,0.3205]
[1761022296148,0.7963,3857.8,3857.2,0.3205]
[1761022296348,0.7963,3857.8,3857.3,0.3205]
[1761022296743,0.3298,3857.8,3857.3,0.3205]
[1761022297149,0.3298,3857.5,3857.3,0.3205]
[1761022297553,0.3298,3857.4,3857.3,0.3205]
[1761022298545,0.79632,3857.6,3857.3,0.3205]
[1761022298852,0.3298,3857.5,3857.3,0.3205]
[1761022299439,0.46652,3857.6,3857.3,0.3205]
[1761022299654,0.79632,3857.6,3857.3,0.3205]
[1761022300249,0.7889,3857.6,3857.5,0.2192]
[1761022301147,0.4591,3857.4,3857.3,0.5397]
[1761022301352,0.7889,3857.4,3857.3,0.5397]
[1761022301845,1.25545,3857.4,3857.0,0.1385]
[1761022302045,0.2305,3857.2,3857.1,0.5397]
[1761022302258,0.2305,3857.2,3857.1,0.7643]
[1761022303352,0.4591,3857.2,3857.1,0.7643]
[1761022303649,0.2305,3857.2,3857.1,0.7643]
[1761022303854,0.3298,3857.6,3857.0,0.76108889]
[1761022303855,0.2305,3857.6,3857.5,0.9028]
[1761022306151,0.2305,3857.2,3857.1,0.7643]
[1761022306745,0.7889,3857.2,3857.1,0.7643]
[1761022308355,0.2305,3857.2,3857.1,0.7643]
[1761022308552,1.02682,3857.6,3857.2,0.3205]
[1761022308747,1.02682,3857.6,3857.5,0.5397]
[1761022309148,1.25542,3857.6,3857.5,0.5397]
[1761022310155,0.7889,3857.3,3857.2,0.3205]
[1761022310460,0.4591,3857.3,3857.2,1.23087]
[1761022310960,0.2305,3857.3,3857.2,1.23087]
[1761022311758,0.2305,3857.3,3857.2,0.7643]
[1761022312456,0.46653,3857.5,3857.2,0.7643]
[1761022312650,0.3298,3858.1,3857.5,0.459]
[1761022312851,0.2286,3857.8,3857.7,0.5397]
[1761022313058,0.7889,3857.5,3857.4,0.5397]
[1761022313257,0.7889,3857.5,3857.4,0.7643]
[1761022313454,0.4591,3857.5,3857.4,0.7643]
[1761022313653,0.4591,3857.5,3857.4,1.23084]
[1761022313854,0.3298,3857.8,3857.4,1.23084]
[1761022314049,1.02679,3857.8,3857.7,0.5397]
[1761022314256,1.25539,3857.8,3857.7,0.5397]
[1761022314551,0.7889,3857.8,3857.7,0.5397]
[1761022314759,0.2305,3857.8,3857.7,0.7643]
[1761022315055,0.7889,3857.8,3857.7,0.7643]
[1761022315255,0.4591,3857.8,3857.7,0.7643]
[1761022315564,0.2305,3857.8,3857.7,0.7643]
[1761022317461,0.5492,3858.1,3858.0,0.4424]
[1761022317664,0.2194,3858.1,3858.0,0.7727]
[1761022318267,0.2194,3858.1,3858.0,0.9065]
[1761022319560,0.2194,3858.1,3858.0,1.37297]
[1761022320464,0.2194,3858.8,3858.7,0.7727]
[1761022320660,0.0028515,3859.0,3858.9,0.4424]
[1761022320661,0.2222515,3859.0,3858.9,0.4424]
[1761022320854,0.0028515,3859.0,3858.9,0.4424]
[1761022321060,0.2222515,3859.0,3858.9,0.7727]
[1761022321260,0.7883515,3859.0,3858.9,0.7727]
[1761022322565,0.7883515,3859.0,3858.9,0.5549]
[1761022322767,0.7883515,3859.0,3858.9,0.7727]
[1761022322959,0.7883515,3859.0,3858.5,0.1338]
[1761022322960,0.3486,3858.9,3858.6,0.3303]
[1761022323154,0.7855,3858.7,3858.6,0.5549]
[1761022324661,0.46637,3858.9,3858.6,1.23909]
[1761022324866,0.2194,3858.9,3858.8,0.7727]
[1761022326669,0.4692015,3859.0,3858.9,0.7727]
[1761022326670,0.0028515,3859.0,3858.9,0.7727]
[1761022326871,0.568,3859.9,3859.6,0.3303]
[1761022327072,0.2194,3859.9,3859.8,0.7727]
[1761022327368,0.3486,3859.8,3859.5,0.3584]
[1761022327573,1.25177,3859.7,3859.6,0.5549]
[1761022327778,0.78796643,3859.7,3859.6,0.55745416]
[1761022328372,0.00246643,3859.7,3859.6,0.77525416]
[1761022328769,0.78796643,3859.7,3859.6,0.77525416]
[1761022328971,1.25422643,3859.7,3859.6,0.55745416]
[1761022329273,1.25422643,3859.7,3859.6,0.00255416]
[1761022329470,1.25422643,3859.7,3859.6,0.55745416]
[1761022329868,1.25422643,3859.7,3859.6,0.00255416]
[1761022331479,6.25422643,3859.7,3859.6,0.00255416]
[1761022333275,2.43589653,3859.7,3859.6,0.00255416]
[1761022334976,0.90562643,3859.7,3859.6,0.77525416]
[1761022335283,1.96963653,3859.7,3859.6,0.00255416]
[1761022338585,0.2294,3858.2,3858.1,2.17568938]
[1761022338786,0.2294,3858.3,3858.2,0.7832]
[1761022339690,0.2294,3858.3,3858.2,0.78584683]
[1761022340194,0.7699,3858.3,3858.2,0.78584683]
[1761022340596,0.4466,3858.3,3858.2,0.78584683]
[1761022341295,0.7699,3858.3,3858.2,0.23434683]
[1761022341988,0.7699,3858.3,3858.2,0.56844683]
[1761022342390,0.4466,3858.3,3858.2,0.78584683]
[1761022343989,0.2294,3858.5,3858.4,0.4491]
[1761022344192,0.2294,3858.5,3858.4,0.7832]
[1761022345296,0.7699,3858.5,3858.4,0.7832]
[1761022345493,0.7699,3858.3,3858.2,0.00264683]
[1761022345693,1.9515701,3858.3,3858.2,0.00264683]
[1761022347183,2.4180001,3858.3,3858.2,0.00264683]
[1761022348189,0.7958,3856.8,3856.7,0.70868491]
[1761022348384,0.7958,3856.8,3856.7,0.5455]
[1761022348584,0.3407,3856.5,3856.4,0.5455]
[1761022348792,0.7958,3856.5,3856.4,0.5455]
[1761022348994,0.79901532,3856.5,3856.4,0.54785967]
[1761022349193,0.79901532,3856.5,3856.4,0.00235967]
[1761022349194,0.92751532,3856.5,3856.4,0.00235967]
[1761022349887,0.00321532,3856.5,3856.4,0.76875967]
[1761022350088,2.22306466,3858.0,3857.3,0.4514]
[1761022350089,0.1285,3858.0,3857.3,0.4514]
[1761022350394,1.2622,3858.6,3858.5,0.2305]
[1761022350693,0.2243,3857.9,3857.8,0.5455]
[1761022350895,0.7958,3857.9,3857.5,0.4452]
[1761022351107,0.2308,3857.7,3857.6,0.315]
[1761022351297,0.5715,3857.7,3857.6,0.5455]
[1761022351493,0.7958,3857.7,3857.6,0.5455]
[1761022351990,0.46655,3857.4,3857.1,0.315]
[1761022352191,0.3407,3857.3,3857.1,0.315]
[1761022352395,0.46655,3857.4,3857.1,0.315]
[1761022353098,0.3407,3857.2,3857.1,0.315]
[1761022353303,0.3407,3857.2,3856.4,0.46901967]
[1761022353304,0.3407,3857.2,3856.6,0.78163]
[1761022353502,0.46659,3857.1,3856.7,0.315]
[1761022354101,0.3407,3857.2,3856.7,0.315]
[1761022354492,0.46655,3857.4,3856.9,0.315]
[1761022354692,0.00299168,3857.9,3857.1,0.315]
[1761022354693,0.46656,3857.3,3857.1,0.315]
[1761022354888,0.3407,3857.2,3857.1,0.315]
[1761022355892,0.8073,3857.0,3856.7,0.315]
[1761022356098,0.3407,3857.0,3856.7,0.315]
[1761022356707,0.80729,3857.0,3856.7,0.315]
[1761022357000,0.80734,3856.6,3856.4,0.00235967]
[1761022357208,0.3407,3856.6,3856.4,0.31735967]
[1761022357506,0.46661,3856.9,3856.4,0.31735967]
[1761022357703,0.93585,3856.5,3856.4,0.00235967]
[1761022360110,0.3407,3855.7,3855.4,0.315]
[1761022360407,0.3407,3855.7,3855.5,0.315]
[1761022360701,0.3407,3856.0,3855.5,0.315]
[1761022360906,0.3407,3856.0,3855.6,0.315]
[1761022361103,0.3407,3856.0,3855.8,0.315]
[1761022361303,0.3407,3855.9,3855.6,0.31812899]
[1761022361908,0.1285,3856.0,3855.6,0.00312899]
[1761022361909,0.3407,3855.7,3855.6,0.00312899]
[1761022362107,0.3407,3855.7,3855.6,0.31812899]
[1761022362506,0.3407,3855.9,3855.6,0.31812899]
[1761022363007,0.3407,3856.2,3855.7,0.315]
[1761022363206,0.5715,3856.0,3855.9,0.2305]
[1761022363410,0.5715,3856.0,3855.9,0.5455]
[1761022363601,0.3407,3856.6,3855.9,0.4514]
[1761022363801,0.2308,3856.6,3856.5,0.8966]
[1761022364210,0.2308,3856.2,3856.1,0.5455]
[1761022364411,0.2308,3856.2,3856.1,0.7664]
[1761022365007,0.4551,3855.9,3855.8,0.5455]
[1761022365204,0.7958,3855.9,3855.8,0.7664]
[1761022365401,0.3407,3856.1,3855.9,0.315]
[1761022365601,0.3407,3856.3,3856.1,0.315]
[1761022365801,0.3407,3856.6,3856.2,0.315]
[1761022366215,0.3407,3856.3,3856.2,0.315]
[1761022366919,4.06241442,3857.0,3856.2,0.315]
[1761022366920,0.3407,3856.5,3856.2,0.315]
[1761022367709,0.3407,3856.5,3856.3,0.315]
[1761022367910,0.3407,3856.5,3856.2,0.46668]
[1761022367911,0.2308,3856.5,3856.4,0.7664]
[1761022368513,0.46665,3856.6,3856.5,0.8966]
[1761022368705,0.69745,3856.6,3856.5,0.8966]
[1761022369217,0.6974,3856.9,3856.8,0.7664]
[1761022369416,1.0381,3856.9,3856.8,0.7664]
[1761022369713,1.2624,3856.9,3856.8,0.5455]
[1761022369911,0.7958,3856.4,3856.3,0.5455]
[1761022370102,0.2308,3856.1,3856.0,0.5816]
[1761022370305,0.2308,3856.4,3856.3,0.7664]
[1761022370814,0.46664,3856.6,3856.4,0.315]
[1761022371011,1.26244,3856.6,3856.5,0.2209]
[1761022371212,0.3407,3856.1,3855.8,9.594]
[1761022371410,0.7958,3855.9,3855.8,10.3604]
[1761022371719,0.4551,3855.9,3855.8,10.3604]
[1761022372109,0.5715,3856.2,3855.8,10.0454]
[1761022372317,0.5715,3856.5,3856.2,0.315]
[1761022372515,0.4551,3856.3,3856.2,0.2305]
[1761022372716,0.7958,3856.3,3856.2,0.2305]
[1761022373218,1.26247,3856.3,3856.2,0.2305]
[1761022374010,1.26247,3856.3,3856.2,0.5455]
[1761022374203,0.7958,3856.3,3856.2,0.7664]
[1761022374402,0.2308,3856.3,3856.2,1.23309]
[1761022374608,0.5715,3856.6,3856.5,0.7664]
[1761022374806,0.7958,3856.6,3856.5,0.7664]
[1761022375019,1.26244,3856.6,3856.5,0.7664]
[1761022376809,0.2308,3856.1,3856.0,0.3607]
[1761022377009,0.2308,3856.1,3856.0,0.5816]
[1761022377205,1.2625,3856.1,3856.0,0.4514]
[1761022377415,0.7958,3856.1,3856.0,0.7664]
[1761022378120,0.4551,3856.1,3856.0,0.9053]
[1761022379012,0.7974,3856.1,3856.0,0.315]
[1761022379215,1.25862,3855.9,3855.8,9.594]
[1761022380420,0.7919,3855.9,3855.8,10.1521]
[1761022380616,1.25862,3855.9,3855.8,10.1521]
[1761022381121,1.25862,3855.9,3855.8,9.594]
[1761022381714,1.25865,3855.7,3855.2,9.9314]
[1761022382114,6.25865,3855.7,3855.2,9.9314]
[1761022382315,6.25865,3855.7,3855.2,9.588]
[1761022382918,0.2266,3854.7,3854.6,10.1441]
[1761022383119,0.2266,3854.7,3854.6,10.3686]
[1761022383516,0.5689,3854.7,3854.6,10.3686]
[1761022383819,0.57183706,3854.7,3854.6,10.37042676]
[1761022384022,0.22953706,3854.7,3854.6,10.37042676]
[1761022384524,0.00293706,3854.7,3854.6,10.37042676]
[1761022384821,0.79483706,3854.7,3854.6,10.37042676]
[1761022385022,0.22953706,3854.7,3854.6,10.37042676]
[1761022385222,0.00293706,3854.7,3854.6,10.37042676]
[1761022386224,0.79483706,3854.7,3854.6,10.36942676]
[1761022386923,0.46694,3854.1,3854.0,1.39248938]
[1761022387123,0.7919,3853.6,3853.1,0.3434]
[1761022387423,0.5689,3853.5,3853.4,0.5581]
[1761022387628,0.3423,3853.2,3853.0,0.3434]
[1761022387921,0.80935,3853.2,3853.0,0.34572253]
[1761022388126,0.3423,3853.1,3853.0,0.00232253]
[1761022390222,0.5689,3853.1,3853.0,0.00232253]
[1761022390423,0.4496,3853.1,3853.0,0.78492253]
[1761022390931,0.7919,3853.1,3853.0,0.78492253]
[1761022391631,0.7919,3853.1,3853.0,0.00232253]
[1761022392022,5.7919,3853.1,3853.0,0.00232253]
[1761022394132,0.3423,3851.9,3851.1,0.3434]
[1761022394322,0.3423,3851.3,3851.2,0.3434]
[1761022394522,0.3423,3851.3,3851.0,0.1389]
[1761022394728,0.3423,3851.3,3851.1,0.3434]
[1761022395125,0.81154033,3851.3,3851.1,0.00309764]
[1761022395325,0.00196033,3851.3,3851.1,0.34649764]
[1761022395525,0.34426033,3851.3,3851.1,0.34649764]
[1761022396131,0.1352,3852.5,3851.1,5.00309764]
[1761022396333,0.3246,3852.0,3851.4,0.46726]
[1761022396524,0.3246,3852.0,3851.1,0.00309764]
[1761022396525,0.3246,3851.9,3851.6,0.3278]
[1761022397229,0.32669998,3851.9,3851.7,0.3278]
[1761022397628,0.00209998,3851.9,3851.8,0.3278]
[1761022399436,0.00209998,3851.9,3851.8,5.3278]
[1761022400537,0.00209998,3851.9,3851.8,0.3278]
[1761022400733,0.32669998,3851.9,3851.3,0.3278]
[1761022400931,0.79182,3851.8,3851.4,0.3278]
[1761022401235,0.00209998,3851.9,3851.4,0.3278]
[1761022401236,0.3246,3851.5,3851.4,0.3278]
[1761022401842,0.3246,3851.4,3851.2,0.3278]
[1761022402232,0.3246,3851.6,3851.3,0.3278]
[1761022402541,0.3246,3851.8,3851.5,0.3278]
[1761022402736,0.46728,3851.3,3851.1,0.00309764]
[1761022403045,0.3246,3851.2,3851.1,0.00309764]
[1761022403550,0.3246,3851.2,3851.1,0.33089764]
[1761022404349,0.3246,3851.2,3851.1,0.00309764]
[1761022405447,0.3246,3851.2,3850.2,0.3278]
[1761022405448,5.0,3851.2,3850.2,0.3278]
[1761022405654,0.3246,3850.4,3850.2,0.3278]
[1761022405853,0.46739,3850.4,3850.2,0.3278]
[1761022406148,0.3246,3850.3,3850.2,0.3278]
[1761022406350,0.3246,3850.3,3850.2,0.33038166]
[1761022406652,0.3246,3850.5,3850.2,0.33038166]
[1761022406840,0.3246,3850.4,3850.2,0.33038166]
[1761022407242,0.46728,3851.3,3850.6,0.3278]
[1761022407438,0.46732,3851.0,3850.6,0.3278]
[1761022407642,0.46732,3851.0,3850.2,0.34318166]
[1761022407643,0.341,3850.8,3850.2,0.34318166]
[1761022407940,0.1282,3851.0,3850.3,0.3406]
[1761022408255,0.80839,3850.4,3850.2,0.00258166]
[1761022408454,0.341,3850.3,3850.2,0.00258166]
[1761022410154,0.46742,3850.2,3849.2,0.17610289]
[1761022410360,0.341,3849.7,3849.3,0.3406]
[1761022410957,0.341,3849.9,3849.6,0.3406]
[1761022411147,0.341,3849.9,3849.6,0.34263707]
[1761022411346,0.341,3849.9,3849.7,0.46747]
[1761022411549,0.341,3849.9,3849.8,0.3406]
[1761022412549,0.341,3850.9,3849.9,0.3406]
[1761022412750,0.80828,3851.3,3850.6,0.46736]
[1761022412951,0.1386,3851.5,3850.2,0.1271]
[1761022412952,0.341,3851.1,3850.7,0.80795]
[1761022413151,0.341,3851.1,3850.8,0.80793]
[1761022413357,0.34309998,3851.9,3851.0,0.3406]
[1761022413561,0.341,3851.7,3851.0,0.3406]
[1761022414057,0.341,3851.1,3850.8,0.3406]
[1761022414851,0.341,3851.1,3850.8,0.46733]
[1761022415050,0.46727,3851.4,3850.9,0.46732]
[1761022415257,0.341,3851.4,3851.2,0.3406]
[1761022415456,0.34309998,3851.9,3851.2,0.3406]
[1761022415651,0.92181416,3851.8,3851.2,0.3406]
[1761022415853,0.00209998,3851.9,3851.8,0.3406]
[1761022416956,0.00209998,3851.9,3851.8,0.51141935]
[1761022417658,0.00209998,3851.9,3851.8,0.3406]
[1761022418062,0.341,3851.6,3851.2,0.3406]
[1761022418665,0.341,3851.6,3851.3,0.3406]
[1761022418862,0.00209998,3851.9,3851.4,0.1271]
[1761022419155,0.00209998,3851.9,3851.8,0.3406]
[1761022420354,0.34309998,3851.9,3851.8,0.3406]
[1761022420550,0.34309998,3851.9,3851.4,0.59437]
[1761022420551,0.46930998,3851.9,3851.5,0.3406]
[1761022420756,0.341,3851.8,3851.5,0.3406]
[1761022421852,0.80825,3851.6,3851.1,0.3406]
[1761022422161,0.46723,3851.8,3851.2,0.3406]
[1761022422761,0.80823,3851.7,3851.3,0.3406]